bitfinex/quotes_BTCUSD_20250719
["timestamp","ask_amount","ask_price","bid_price","bid_amount"]
[1752911072820,0.73393709,118230.0,118220.0,0.2138001]
[1752911073473,0.71833709,118230.0,118220.0,0.2138001]
[1752911073827,0.71839081,118230.0,118220.0,0.2138001]
[1752911079485,0.91410681,118230.0,118220.0,0.12816982]
[1752911080173,0.73419081,118230.0,118220.0,0.12816982]
[1752911087979,0.71839081,118230.0,118220.0,4.982e-05]
[1752911088201,0.53847481,118230.0,118220.0,0.12816982]
[1752911088468,0.71839081,118230.0,118220.0,0.12816982]
[1752911097218,0.53847481,118230.0,118220.0,0.12816982]
[1752911097438,0.71839081,118230.0,118220.0,0.12816982]
[1752911097997,0.71839081,118230.0,118220.0,0.12812982]
[1752911101379,0.70229081,118230.0,118220.0,0.12812982]
[1752911101603,0.69932081,118230.0,118220.0,0.12812982]
[1752911101822,0.69932081,118230.0,118220.0,0.13019982]
[1752911102067,0.51742481,118230.0,118220.0,0.23550108]
[1752911102285,0.69734081,118230.0,118220.0,0.2517701]
[1752911105254,0.01672088,118230.0,118220.0,0.4316861]
[1752911105468,0.00851123,118230.0,118220.0,0.80615375]
[1752911105692,5.372e-05,118230.0,118220.0,0.88032736]
[1752911105907,5.372e-05,118230.0,118220.0,0.9430055]
[1752911106102,5.372e-05,118230.0,118220.0,0.88032736]
[1752911106762,5.372e-05,118230.0,118220.0,0.88232736]
[1752911107446,0.00851116,118230.0,118220.0,0.88232736]
[1752911107656,0.00851116,118230.0,118220.0,0.52249536]
[1752911107875,5.372e-05,118230.0,118220.0,0.88232736]
[1752911108088,0.00851116,118230.0,118220.0,0.88232736]
[1752911108678,0.01696867,118230.0,118220.0,0.88232736]
[1752911108892,0.00851116,118230.0,118220.0,0.88232736]
[1752911109059,0.01696874,118230.0,118220.0,0.88232736]
[1752911109277,0.00851116,118230.0,118220.0,0.88232736]
[1752911109935,0.01696867,118230.0,118220.0,0.88232736]
[1752911110139,0.03388413,118230.0,118220.0,0.88232736]
[1752911110345,0.01696867,118230.0,118220.0,0.88232736]
[1752911110756,0.01696867,118230.0,118220.0,0.75424736]
[1752911110957,0.01696867,118230.0,118220.0,0.88232736]
[1752911111167,0.00851116,118230.0,118220.0,0.88232736]
[1752911111859,0.00851116,118230.0,118220.0,0.88432736]
[1752911112334,0.00851116,118230.0,118220.0,0.75624736]
[1752911112596,0.00851116,118230.0,118220.0,0.88432736]
[1752911113692,0.03388455,118230.0,118220.0,0.88432736]
[1752911114159,0.03388455,118230.0,118220.0,0.88432743]
[1752911114374,0.04234264,118230.0,118220.0,0.88432743]
[1752911114703,0.04234264,118230.0,118220.0,0.89278573]
[1752911115332,0.03388455,118230.0,118220.0,0.89278573]
[1752911115546,0.04234264,118230.0,118220.0,0.88432743]
[1752911115754,0.03388455,118230.0,118220.0,0.88432743]
[1752911115967,0.03388455,118230.0,118220.0,0.89278573]
[1752911117113,0.04234264,118230.0,118220.0,0.88428743]
[1752911117577,0.04234264,118230.0,118220.0,0.89274573]
[1752911117578,0.02542654,118230.0,118220.0,0.89274573]
[1752911118007,0.03388448,118230.0,118220.0,0.76470573]
[1752911118225,0.02542654,118230.0,118220.0,0.89274573]
[1752911120972,0.01696874,118230.0,118220.0,0.89274573]
[1752911121201,0.02542647,118230.0,118220.0,0.89274573]
[1752911121674,0.01696874,118230.0,118220.0,0.89274573]
[1752911122934,0.02542647,118230.0,118220.0,0.89274573]
[1752911123387,0.01696874,118230.0,118220.0,0.89274573]
[1752911124028,0.03388441,118230.0,118220.0,0.75624743]
[1752911124233,0.03388434,118230.0,118220.0,0.89274573]
[1752911124446,0.03388427,118230.0,118220.0,0.89274573]
[1752911125008,0.02542647,118230.0,118220.0,0.89274573]
[1752911125225,0.0254264,118230.0,118220.0,0.89274573]
[1752911125878,0.0338842,118230.0,118220.0,0.89274573]
[1752911126065,0.0254264,118230.0,118220.0,0.89274573]
[1752911126563,0.01696874,118230.0,118220.0,0.89274573]
[1752911127217,0.02542647,118230.0,118220.0,0.89274573]
[1752911127679,0.01696874,118230.0,118220.0,0.89274573]
[1752911127910,0.0254264,118230.0,118220.0,0.89274573]
[1752911128125,0.00851116,118230.0,118220.0,0.89274573]
[1752911128347,0.01696867,118230.0,118220.0,0.89274573]
[1752911128778,0.03388413,118230.0,118220.0,0.53291373]
[1752911129001,0.02542633,118230.0,118220.0,0.89274573]
[1752911130217,0.03388406,118230.0,118220.0,0.8927458]
[1752911130410,0.04234193,118230.0,118220.0,0.89274587]
[1752911130837,0.04234193,118230.0,118220.0,0.71282987]
[1752911130971,0.04234186,118230.0,118220.0,0.72128817]
[1752911131603,0.04234186,118230.0,118220.0,0.71282987]
[1752911131815,0.04234186,118230.0,118220.0,0.72128817]
[1752911132011,0.04234236,118230.0,118220.0,0.7043715]
[1752911132187,0.04234236,118230.0,118220.0,0.71282987]
[1752911132388,0.04234294,118230.0,118220.0,0.69591306]
[1752911132613,0.02542691,118230.0,118220.0,0.70437136]
[1752911132814,0.03388492,118230.0,118220.0,0.7043715]
[1752911133384,0.03388492,118230.0,118220.0,0.69591306]
[1752911134016,0.03388485,118230.0,118220.0,0.7043715]
[1752911134241,0.01696911,118230.0,118220.0,0.72128817]
[1752911134448,0.01696911,118230.0,118220.0,0.59324817]
[1752911134657,0.01696911,118230.0,118220.0,0.72128817]
[1752911135331,0.02542691,118230.0,118220.0,0.72128817]
[1752911135545,0.01696911,118230.0,118220.0,0.72128817]
[1752911135757,0.01696882,118230.0,118220.0,0.72128817]
[1752911135971,0.02542662,118230.0,118220.0,0.72128817]
[1752911136124,0.02531456,118230.0,118220.0,0.72128817]
[1752911136531,0.02531449,118230.0,118220.0,0.72128817]
[1752911136717,0.01685676,118230.0,118220.0,0.59324817]
[1752911136923,0.01685676,118230.0,118220.0,0.72128817]
[1752911139048,0.0169151,118230.0,118220.0,0.72128817]
[1752911139254,0.01691502,118230.0,118220.0,0.72128817]
[1752911139764,0.01691502,118230.0,118220.0,0.92420817]
[1752911142906,0.01691502,118230.0,118220.0,0.74429217]
[1752911143117,0.01691502,118230.0,118220.0,0.92420817]
[1752911143984,0.01691502,118230.0,118220.0,1.10412417]
[1752911145041,0.01691502,118230.0,118220.0,0.74429217]
[1752911145279,0.01691502,118230.0,118220.0,1.10412417]
[1752911145514,0.02537275,118230.0,118220.0,0.92420817]
[1752911145732,0.02537275,118230.0,118220.0,0.74429217]
[1752911145954,0.02537275,118230.0,118220.0,0.73583387]
[1752911146165,0.02537275,118230.0,118220.0,0.92420817]
[1752911146373,0.02537275,118230.0,118220.0,0.9072915]
[1752911146581,0.02537275,118230.0,118220.0,0.91574987]
[1752911146792,0.02537275,118230.0,118220.0,0.92420817]
[1752911147434,0.01691502,118230.0,118220.0,0.92420817]
[1752911147920,0.02537275,118230.0,118220.0,0.92420817]
[1752911148136,0.01691502,118230.0,118220.0,0.92416817]
[1752911149281,0.02537268,118230.0,118220.0,0.92416817]
[1752911151374,0.01691502,118230.0,118220.0,0.92416817]
[1752911151588,0.02537275,118230.0,118220.0,0.92416817]
[1752911152534,0.01691502,118230.0,118220.0,0.92416817]
[1752911157038,0.02537275,118230.0,118220.0,0.92416817]
[1752911157280,0.02537268,118230.0,118220.0,0.90776817]
[1752911159096,0.02537268,118230.0,118220.0,0.72785217]
[1752911159308,0.02537268,118230.0,118220.0,0.90776817]
[1752911160700,0.03383055,118230.0,118220.0,0.88239306]
[1752911160950,0.03383048,118230.0,118220.0,0.89930987]
[1752911161150,0.03383048,118230.0,118220.0,0.8743515]
[1752911161407,0.03383048,118230.0,118220.0,0.88280987]
[1752911161836,0.03383048,118230.0,118220.0,0.89126817]
[1752911162085,0.02537268,118230.0,118220.0,0.89126817]
[1752911162520,0.03383048,118230.0,118220.0,0.89126817]
[1752911162737,0.03383048,118230.0,118220.0,0.88280987]
[1752911162961,0.04228892,118230.0,118220.0,0.68597706]
[1752911163200,0.03383091,118230.0,118220.0,0.8743515]
[1752911163422,0.03383091,118230.0,118220.0,0.86589306]
[1752911163603,0.03383091,118230.0,118220.0,0.8743515]
[1752911163847,0.01691524,118230.0,118220.0,0.89126817]
[1752911164273,0.03383098,118230.0,118220.0,0.8743515]
[1752911164484,0.03383098,118230.0,118220.0,0.86589306]
[1752911165012,0.02537304,118230.0,118220.0,0.8743515]
[1752911165227,0.01691524,118230.0,118220.0,0.8828098]
[1752911165379,0.02537297,118230.0,118220.0,0.8828098]
[1752911166274,0.03383077,118230.0,118220.0,0.8828098]
[1752911166933,0.03383077,118230.0,118220.0,0.89126817]
[1752911167345,0.04228878,118230.0,118220.0,0.86589306]
[1752911167675,0.04228915,118230.0,118220.0,0.87435165]
[1752911167884,0.04228907,118230.0,118220.0,0.87435165]
[1752911168036,0.20515357,118230.0,118220.0,0.54105982]
[1752911168284,0.04273368,118230.0,118220.0,0.68597714]
[1752911168906,0.04273368,118230.0,118220.0,0.69443565]
[1752911169313,0.05119177,118230.0,118220.0,0.69443565]
[1752911169757,0.04273368,118230.0,118220.0,0.69443565]
[1752911169967,0.04273368,118230.0,118220.0,0.87435165]
[1752911170180,0.04273368,118230.0,118220.0,0.88281009]
[1752911170510,0.03427567,118230.0,118220.0,0.89126846]
[1752911171045,0.04057368,118230.0,118220.0,0.88281009]
[1752911171756,0.03211567,118230.0,118220.0,0.89126846]
[1752911172029,0.03211567,118230.0,118220.0,0.88280973]
[1752911172562,0.03211567,118230.0,118220.0,0.89126803]
[1752911172970,0.01691538,118230.0,118220.0,0.89126803]
[1752911173426,0.02537325,118230.0,118220.0,0.89126803]
[1752911173849,0.19453541,118230.0,118220.0,0.86589321]
[1752911174266,0.19453541,118230.0,118220.0,0.86589335]
[1752911174474,0.19453541,118230.0,118220.0,0.67751862]
[1752911174692,0.18607761,118230.0,118220.0,0.85743462]
[1752911174898,0.18607761,118230.0,118220.0,0.86589335]
[1752911175253,0.18607761,118230.0,118220.0,0.87435201]
[1752911175466,0.18607761,118230.0,118220.0,0.8828106]
[1752911175884,0.18607761,118230.0,118220.0,0.7028946]
[1752911176098,0.18607761,118230.0,118220.0,0.8828106]
[1752911176930,0.20157761,118230.0,118220.0,0.87435201]
[1752911177337,0.20157761,118230.0,118220.0,0.89126911]
[1752911178351,0.20157761,118230.0,118220.0,0.71135311]
[1752911181053,0.20157761,118230.0,118220.0,0.58335311]
[1752911181278,0.20157761,118230.0,118220.0,0.7028946]
[1752911182984,0.20373761,118230.0,118220.0,0.7028946]
[1752911183439,0.20373761,118230.0,118220.0,0.71135311]
[1752911183716,0.20373761,118230.0,118220.0,0.71135275]
[1752911183910,0.20373761,118230.0,118220.0,0.89126875]
[1752911184125,0.20373761,118230.0,118220.0,0.82556619]
[1752911184671,0.19527974,118230.0,118220.0,0.82556619]
[1752911184875,0.19527974,118230.0,118220.0,0.8743518]
[1752911185085,0.19527974,118230.0,118220.0,0.8340247]
[1752911186890,0.19527974,118230.0,118220.0,0.84248314]
[1752911187027,0.19311974,118230.0,118220.0,0.84248314]
[1752911187446,0.02395794,118230.0,118220.0,0.84248314]
[1752911187668,0.02537376,118230.0,118220.0,0.84248314]
[1752911188082,0.02537376,118230.0,118220.0,0.71448278]
[1752911188292,0.19453556,118230.0,118220.0,0.83402441]
[1752911191114,0.19453556,118230.0,118220.0,0.82556597]
[1752911191328,0.18607783,118230.0,118220.0,0.81710746]
[1752911191531,0.19361989,118230.0,118220.0,0.80864887]
[1752911192148,0.19568989,118230.0,118220.0,0.62557287]
[1752911192368,0.21424989,118230.0,118220.0,0.62350287]
[1752911192820,0.19874989,118230.0,118220.0,0.62549287]
[1752911192959,0.19568989,118230.0,118220.0,0.62549287]
[1752911193537,0.19568989,118230.0,118220.0,0.80540887]
[1752911194340,0.19568989,118230.0,118220.0,0.81386746]
[1752911195641,0.19568989,118230.0,118220.0,0.80540887]
[1752911196549,0.19568989,118230.0,118220.0,0.62549287]
[1752911197261,0.19568989,118230.0,118220.0,0.63395146]
[1752911199604,0.19568989,118230.0,118220.0,0.50595146]
[1752911199809,0.19568989,118230.0,118220.0,0.63391146]
[1752911200104,0.19568989,118230.0,118220.0,0.50595146]
[1752911200314,0.19568989,118230.0,118220.0,0.62545287]
[1752911201162,0.19568989,118230.0,118220.0,0.49749301]
[1752911201366,0.1872318,118230.0,118220.0,0.4562769]
[1752911201571,0.1872318,118230.0,118220.0,0.4542869]
[1752911201797,0.2024318,118230.0,118220.0,0.1149481]
[1752911201995,0.3854078,118230.0,118220.0,0.4204401]
[1752911202416,0.3854078,118230.0,118220.0,0.2924801]
[1752911202826,0.3854078,118230.0,118220.0,0.4204401]
[1752911206479,0.3854078,118230.0,118220.0,0.0895601]
[1752911206750,0.39994865,118230.0,118220.0,0.13969103]
[1752911206951,0.39994865,118230.0,118220.0,0.4204401]
[1752911214886,0.39994865,118230.0,118220.0,0.2924801]
[1752911215062,0.39994865,118230.0,118220.0,0.4204401]
[1752911225324,0.38168865,118230.0,118220.0,0.4204401]
[1752911225540,0.38168865,118230.0,118220.0,0.4225701]
[1752911234619,0.20177265,118230.0,118220.0,0.4225701]
[1752911234859,0.38168865,118230.0,118220.0,0.4225701]
[1752911238665,0.38168865,118230.0,118220.0,0.4255201]
[1752911239520,0.20177265,118230.0,118220.0,0.4255201]
[1752911239885,0.38168865,118230.0,118220.0,0.4255201]
[1752911241498,0.36568865,118230.0,118220.0,0.4255201]
[1752911244651,0.36568865,118230.0,118220.0,0.4255201]
[1752911244950,0.38148865,118230.0,118220.0,0.4255201]
[1752911246475,0.20157265,118230.0,118220.0,0.4255201]
[1752911246679,0.38148865,118230.0,118220.0,0.4255201]
[1752911254089,0.38148865,118230.0,118220.0,0.4225701]
[1752911264261,0.38148865,118230.0,118220.0,0.2196501]
[1752911268750,0.38148865,118230.0,118220.0,0.2228001]
[1752911269168,0.36568865,118230.0,118220.0,0.2228001]
[1752911271265,0.38188865,118230.0,118220.0,0.2228001]
[1752911272617,0.38188865,118230.0,118220.0,0.2196501]
[1752911273033,0.36568865,118230.0,118220.0,0.2228001]
[1752911280278,0.38078865,118230.0,118220.0,0.2196501]
[1752911283549,0.36568865,118230.0,118220.0,0.2196501]
[1752911283774,0.36568865,118230.0,118220.0,0.2227801]
[1752911297120,0.18577265,118230.0,118220.0,0.2227801]
[1752911297325,0.36568865,118230.0,118220.0,0.2227801]
[1752911312348,0.36568865,118230.0,118220.0,0.2227401]
[1752911313853,0.36568865,118230.0,118220.0,0.0948201]
[1752911314140,0.36568865,118230.0,118220.0,0.2227401]
[1752911319073,0.36568865,118230.0,118220.0,0.0895601]
[1752911319302,0.57868465,118230.0,118220.0,0.0895601]
[1752911319512,0.57868465,118230.0,118220.0,0.2174401]
[1752911320797,0.57868465,118230.0,118220.0,0.2134401]
[1752911321202,0.57868465,118230.0,118220.0,0.0855601]
[1752911321404,0.57868465,118230.0,118220.0,0.2134401]
[1752911321818,0.57868465,118230.0,118220.0,0.0855601]
[1752911322203,0.57868465,118230.0,118220.0,0.2134401]
[1752911324097,0.39876865,118230.0,118220.0,0.2134401]
[1752911327359,0.39827035,118230.0,118220.0,0.23480411]
[1752911330055,0.39827035,118230.0,118220.0,0.10692411]
[1752911330309,0.39827035,118230.0,118220.0,0.2134401]
[1752911331565,0.54923477,118220.0,118210.0,0.0002]
[1752911331792,0.91409677,118220.0,118210.0,0.21359028]
[1752911332764,0.91409677,118220.0,118210.0,0.08571028]
[1752911332949,0.91409677,118220.0,118210.0,0.21359028]
[1752911333161,0.91409677,118220.0,118210.0,0.08571028]
[1752911333362,0.91409677,118220.0,118210.0,0.21359028]
[1752911333567,0.91409677,118220.0,118210.0,0.08571028]
[1752911333764,0.91409677,118220.0,118210.0,0.21359028]
[1752911335281,0.91409677,118220.0,118210.0,0.21363028]
[1752911336884,0.91409677,118220.0,118210.0,0.08571028]
[1752911337081,0.91409677,118220.0,118210.0,0.21363028]
[1752911338250,0.91409677,118220.0,118210.0,0.08571028]
[1752911338836,0.91409677,118220.0,118210.0,0.21363028]
[1752911341750,0.91409677,118220.0,118210.0,0.08571028]
[1752911341961,0.91409677,118220.0,118210.0,0.21363028]
[1752911344619,0.91409677,118220.0,118210.0,0.08571028]
[1752911344841,0.91409677,118220.0,118210.0,0.21363028]
[1752911349691,0.94008439,118220.0,118210.0,0.21363028]
[1752911351504,0.55208098,118220.0,118210.0,0.23551028]
[1752911351683,0.18609336,118220.0,118210.0,0.25121028]
[1752911351885,0.36600936,118220.0,118210.0,0.25121028]
[1752911352141,0.38055021,118220.0,118210.0,0.25121028]
[1752911365493,0.20063421,118220.0,118210.0,0.25121028]
[1752911365702,0.38055021,118220.0,118210.0,0.25121028]
[1752911369981,0.20063421,118220.0,118210.0,0.25121028]
[1752911370137,0.38055021,118220.0,118210.0,0.25121028]
[1752911371980,0.38055021,118220.0,118210.0,0.23551028]
[1752911375112,0.20063421,118220.0,118210.0,0.23551028]
[1752911375319,0.38055021,118220.0,118210.0,0.23551028]
[1752911379683,0.38264021,118220.0,118210.0,0.21891028]
[1752911393890,0.38264021,118220.0,118210.0,0.3881007]
[1752911394100,0.38264021,118220.0,118210.0,0.39656014]
[1752911394360,0.38264021,118220.0,118210.0,0.40501951]
[1752911395406,0.38264021,118220.0,118210.0,0.39656014]
[1752911395634,0.20272421,118220.0,118210.0,0.41347881]
[1752911395838,0.38264021,118220.0,118210.0,0.41347881]
[1752911396061,0.03145738,118220.0,118210.0,0.61835397]
[1752911396288,0.04837477,118220.0,118210.0,0.63485397]
[1752911397138,0.04837477,118220.0,118210.0,0.61835404]
[1752911397350,0.04837477,118220.0,118210.0,0.6268132]
[1752911398233,0.03991597,118220.0,118210.0,0.6268132]
[1752911398433,0.03991597,118220.0,118210.0,0.64331278]
[1752911398855,0.04837477,118220.0,118210.0,0.63485376]
[1752911399256,0.0483747,118220.0,118210.0,0.62681285]
[1752911399386,0.0483747,118220.0,118210.0,0.6268125]
[1752911399591,0.03145738,118220.0,118210.0,0.6268125]
[1752911399789,0.04837448,118220.0,118210.0,0.6268125]
[1752911400010,0.03991582,118220.0,118210.0,0.6268125]
[1752911400605,0.04837441,118220.0,118210.0,0.6268125]
[1752911400811,0.05683307,118220.0,118210.0,0.6268125]
[1752911401318,0.05683307,118220.0,118210.0,0.61835348]
[1752911401492,0.05683364,118220.0,118210.0,0.61835348]
[1752911402233,0.05683407,118220.0,118210.0,0.42997839]
[1752911402446,0.05683407,118220.0,118210.0,0.42151923]
[1752911402870,0.05683407,118220.0,118210.0,0.42997839]
[1752911403436,0.05683407,118220.0,118210.0,0.42151923]
[1752911403972,0.05683407,118220.0,118210.0,0.60989439]
[1752911404500,0.03991654,118220.0,118210.0,0.60989439]
[1752911405239,0.04837534,118220.0,118210.0,0.60143523]
[1752911405721,0.03991654,118220.0,118210.0,0.60143523]
[1752911405924,0.04837527,118220.0,118210.0,0.60989439]
[1752911406433,0.04837527,118220.0,118210.0,0.60143523]
[1752911407295,0.04837527,118220.0,118210.0,0.42997875]
[1752911407793,0.05683407,118220.0,118210.0,0.42997875]
[1752911407999,0.05683407,118220.0,118210.0,0.30205875]
[1752911408126,0.05683407,118220.0,118210.0,0.61843391]
[1752911408752,0.04837527,118220.0,118210.0,0.61843391]
[1752911408958,0.04837527,118220.0,118210.0,0.626893]
[1752911409170,0.04837527,118220.0,118210.0,0.61843391]
[1752911409657,0.04837527,118220.0,118210.0,0.626893]
[1752911410436,0.04837527,118220.0,118210.0,0.61843391]
[1752911410677,0.03991654,118220.0,118210.0,0.61843391]
[1752911410890,0.03991654,118220.0,118210.0,0.626893]
[1752911411902,0.03991654,118220.0,118210.0,0.61843391]
[1752911412036,0.03991654,118220.0,118210.0,0.626893]
[1752911413203,0.03991654,118220.0,118210.0,0.61843391]
[1752911413424,0.04837534,118220.0,118210.0,0.60997475]
[1752911413968,0.20909301,118220.0,118210.0,0.59305622]
[1752911417264,0.20909301,118220.0,118210.0,0.57655622]
[1752911421120,0.20909301,118220.0,118210.0,0.39664022]
[1752911421324,0.20909301,118220.0,118210.0,0.57655622]
[1752911423569,0.20063442,118220.0,118210.0,0.4073658]
[1752911424716,0.20063442,118220.0,118210.0,0.58501566]
[1752911425123,0.59705642,118220.0,118210.0,0.08571028]
[1752911425337,0.59705642,118220.0,118210.0,0.21359028]
[1752911425540,0.93705642,118220.0,118210.0,0.08571028]
[1752911425820,0.93705642,118220.0,118210.0,0.21359028]
[1752911426558,0.93705642,118220.0,118210.0,0.08571028]
[1752911426731,0.93705642,118220.0,118210.0,0.21359028]
[1752911430426,0.93705642,118220.0,118210.0,0.08571028]
[1752911430635,0.93705642,118220.0,118210.0,0.21359028]
[1752911441437,0.01691667,118220.0,118210.0,0.59165607]
[1752911441652,0.03145752,118220.0,118210.0,0.6167153]
[1752911441862,0.03991618,118220.0,118210.0,0.62517446]
[1752911443881,0.03991618,118220.0,118210.0,0.63363355]
[1752911444102,0.05683371,118220.0,118210.0,0.63363355]
[1752911444447,0.03991618,118220.0,118210.0,0.64209257]
[1752911444858,0.03145774,118220.0,118210.0,0.64209257]
[1752911445059,0.04837491,118220.0,118210.0,0.64209257]
[1752911446744,0.05683371,118220.0,118210.0,0.64209257]
[1752911447080,0.05683371,118220.0,118210.0,0.63363355]
[1752911450072,0.05683371,118220.0,118210.0,0.45371755]
[1752911450276,0.05683371,118220.0,118210.0,0.63363355]
[1752911450504,0.04837548,118220.0,118210.0,0.63363355]
[1752911452709,0.04837548,118220.0,118210.0,0.61703355]
[1752911453528,0.04837548,118220.0,118210.0,0.60857446]
[1752911454167,0.04837548,118220.0,118210.0,0.61703355]
[1752911454646,0.03991668,118220.0,118210.0,0.62549257]
[1752911454870,0.03145795,118220.0,118210.0,0.62549257]
[1752911455074,0.03991668,118220.0,118210.0,0.61703355]
[1752911456167,0.03991668,118220.0,118210.0,0.62549257]
[1752911457548,0.04837548,118220.0,118210.0,0.61703355]
[1752911458002,0.04837548,118220.0,118210.0,0.43711755]
[1752911458479,0.04837548,118220.0,118210.0,0.61703355]
[1752911460361,0.03991618,118220.0,118210.0,0.62549257]
[1752911460771,0.03991589,118220.0,118210.0,0.64059257]
[1752911461211,0.03145738,118220.0,118210.0,0.64059257]
[1752911461650,0.03991582,118220.0,118210.0,0.64059257]
[1752911462519,0.04837433,118220.0,118210.0,0.64059257]
[1752911462735,0.02299908,118220.0,118210.0,0.64059257]
[1752911463151,0.02299908,118220.0,118210.0,0.66598257]
[1752911463604,0.03145745,118220.0,118210.0,0.66598257]
[1752911464417,0.03991596,118220.0,118210.0,0.66598257]
[1752911464677,0.03145745,118220.0,118210.0,0.66598257]
[1752911465521,0.03991596,118220.0,118210.0,0.66598257]
[1752911465745,0.03145745,118220.0,118210.0,0.66598257]
[1752911466842,0.02299908,118220.0,118210.0,0.66598257]
[1752911466971,0.03145745,118220.0,118210.0,0.66598257]
[1752911467566,0.03991589,118220.0,118210.0,0.66598257]
[1752911467809,0.03991589,118220.0,118210.0,0.65088257]
[1752911468836,0.0483744,118220.0,118210.0,0.65088257]
[1752911469379,0.0483744,118220.0,118210.0,0.47096657]
[1752911469564,0.0483744,118220.0,118210.0,0.65088257]
[1752911470205,0.03991589,118220.0,118210.0,0.65088257]
[1752911471465,0.03991589,118220.0,118210.0,0.47096657]
[1752911471664,0.03991589,118220.0,118210.0,0.65088257]
[1752911472073,0.04837448,118220.0,118210.0,0.65088257]
[1752911472626,0.03991589,118220.0,118210.0,0.65088257]
[1752911473763,0.21755066,118220.0,118210.0,0.63396446]
[1752911473929,0.20909243,118220.0,118210.0,0.63396446]
[1752911474306,0.20909243,118220.0,118210.0,0.6255053]
[1752911474696,0.20063406,118220.0,118210.0,0.6255053]
[1752911476631,0.20063406,118220.0,118210.0,0.8284653]
[1752911477734,0.20063406,118220.0,118210.0,0.82000607]
[1752911477936,0.19217562,118220.0,118210.0,0.82000607]
[1752911478166,0.19217562,118220.0,118210.0,0.62459007]
[1752911478362,0.19217562,118220.0,118210.0,0.80450607]
[1752911478851,0.18371696,118220.0,118210.0,0.80450607]
[1752911480390,0.18371696,118220.0,118210.0,0.62459007]
[1752911480631,0.18371696,118220.0,118210.0,0.80450607]
[1752911484191,0.18371696,118220.0,118210.0,0.81296537]
[1752911488326,0.18371696,118220.0,118210.0,0.82142453]
[1752911491782,0.18371696,118220.0,118210.0,0.69354453]
[1752911492021,0.18371696,118220.0,118210.0,0.82150453]
[1752911493178,0.18371696,118220.0,118210.0,0.64158853]
[1752911493403,0.18371696,118220.0,118210.0,0.82150453]
[1752911493856,0.18371696,118220.0,118210.0,0.81304537]
[1752911494026,0.18371696,118220.0,118210.0,0.78765537]
[1752911494246,0.18371696,118220.0,118210.0,0.7961146]
[1752911495690,0.19217562,118220.0,118210.0,0.80457376]
[1752911497074,0.19217562,118220.0,118210.0,0.81303285]
[1752911497604,0.03145795,118220.0,118210.0,0.81303285]
[1752911497814,0.03145795,118220.0,118210.0,0.8130325]
[1752911498017,0.03991668,118220.0,118210.0,0.8130325]
[1752911498292,0.04837548,118220.0,118210.0,0.8130325]
[1752911498941,0.03991668,118220.0,118210.0,0.8130325]
[1752911499352,0.04837548,118220.0,118210.0,0.8130325]
[1752911499777,0.04837548,118220.0,118210.0,0.8384225]
[1752911500544,0.04837548,118220.0,118210.0,0.82996348]
[1752911501420,0.04837548,118220.0,118210.0,0.65004748]
[1752911501547,0.04837548,118220.0,118210.0,0.80457348]
[1752911502216,0.04837548,118220.0,118210.0,0.62465748]
[1752911502350,0.21755159,118220.0,118210.0,0.80457348]
[1752911504000,0.04837548,118220.0,118210.0,0.80457348]
[1752911504203,0.04837548,118220.0,118210.0,0.8130325]
[1752911504816,0.04837548,118220.0,118210.0,0.6331165]
[1752911504995,0.04837548,118220.0,118210.0,0.8130325]
[1752911508168,0.04837548,118220.0,118210.0,0.8384215]
[1752911509417,0.03991668,118220.0,118210.0,0.8384215]
[1752911511849,0.03991668,118220.0,118210.0,0.7104615]
[1752911512061,0.03991668,118220.0,118210.0,0.8129525]
[1752911515300,0.03991668,118220.0,118210.0,0.6330365]
[1752911515500,0.03991668,118220.0,118210.0,0.8129525]
[1752911517847,0.03145795,118220.0,118210.0,0.8129525]
[1752911519118,0.03991611,118220.0,118210.0,0.8129525]
[1752911520010,0.04837477,118220.0,118210.0,0.8129525]
[1752911521217,0.06437477,118220.0,118210.0,0.8129525]
[1752911521609,0.03145745,118220.0,118210.0,0.6485365]
[1752911521816,0.04837455,118220.0,118210.0,0.8284525]
[1752911522029,0.04837455,118220.0,118210.0,0.8129525]
[1752911524811,0.05683328,118220.0,118210.0,0.8129525]
[1752911525228,0.05683328,118220.0,118210.0,0.6330365]
[1752911525424,0.05683328,118220.0,118210.0,0.8129525]
[1752911525828,0.04837455,118220.0,118210.0,0.6330365]
[1752911526038,0.04837455,118220.0,118210.0,0.8129525]
[1752911527074,0.04837448,118220.0,118210.0,0.8129525]
[1752911527193,0.05683314,118220.0,118210.0,0.8129525]
[1752911530083,0.05683314,118220.0,118210.0,0.6330365]
[1752911530224,0.05683314,118220.0,118210.0,0.8129525]
[1752911532699,0.04837448,118220.0,118210.0,0.8129525]
[1752911533941,0.21755059,118220.0,118210.0,0.78757552]
[1752911534148,0.20909265,118220.0,118210.0,0.78757566]
[1752911534546,0.20063421,118220.0,118210.0,0.6099258]
[1752911534759,0.20063421,118220.0,118210.0,0.61838524]
[1752911534958,0.20063421,118220.0,118210.0,0.78757552]
[1752911535161,0.21693421,118220.0,118210.0,0.47132022]
[1752911535361,0.21693421,118220.0,118210.0,0.79603503]
[1752911535563,0.21693421,118220.0,118210.0,0.80449433]
[1752911535725,0.21693421,118220.0,118210.0,0.62457833]
[1752911535932,0.21693421,118220.0,118210.0,0.81295356]
[1752911536464,0.21693421,118220.0,118210.0,0.49669833]
[1752911536718,0.20847562,118220.0,118210.0,0.80449433]
[1752911537073,0.20001696,118220.0,118210.0,0.79603503]
[1752911538141,0.20001696,118220.0,118210.0,0.61611903]
[1752911538302,0.20001696,118220.0,118210.0,0.78757566]
[1752911538506,0.20001696,118220.0,118210.0,0.60146628]
[1752911538721,0.20214696,118220.0,118210.0,0.60146628]
[1752911539058,0.20214696,118220.0,118210.0,0.6099258]
[1752911541226,0.20214696,118220.0,118210.0,0.61838524]
[1752911542846,0.20214696,118220.0,118210.0,0.78757566]
[1752911545305,0.20214696,118220.0,118210.0,0.60765966]
[1752911545542,0.20214696,118220.0,118210.0,0.78757566]
[1752911545751,0.20214696,118220.0,118210.0,0.60765966]
[1752911546051,0.20214696,118220.0,118210.0,0.78757566]
[1752911546692,0.20214696,118220.0,118210.0,0.65969566]
[1752911546899,0.20214696,118220.0,118210.0,0.78757566]
[1752911548964,0.20214696,118220.0,118210.0,0.79603503]
[1752911550100,0.20214696,118220.0,118210.0,0.61611903]
[1752911550315,0.20214696,118220.0,118210.0,0.79603503]
[1752911550705,0.20214696,118220.0,118210.0,0.46519503]
[1752911550907,0.20214696,118220.0,118210.0,0.79603503]
[1752911552912,0.20214696,118220.0,118210.0,0.80449433]
[1752911553621,0.21060576,118220.0,118210.0,0.80449433]
[1752911553825,0.21060576,118220.0,118210.0,0.81295356]
[1752911554051,0.21906435,118220.0,118210.0,0.81295356]
[1752911554864,0.21906435,118220.0,118210.0,0.63303756]
[1752911555055,0.21906435,118220.0,118210.0,0.81295356]
[1752911555987,0.21906435,118220.0,118210.0,0.8129532]
[1752911556580,0.21906435,118220.0,118210.0,0.81295285]
[1752911557022,0.21693435,118220.0,118210.0,0.81295285]
[1752911558073,0.04775781,118220.0,118210.0,0.6330365]
[1752911558293,0.0646752,118220.0,118210.0,0.8129525]
[1752911558592,0.073134,118220.0,118210.0,0.8129525]
[1752911559858,0.073134,118220.0,118210.0,0.80449348]
[1752911564188,0.073134,118220.0,118210.0,0.8129525]
[1752911565962,0.073134,118220.0,118210.0,0.4821125]